Workbook

Sheet Jan
B2: Order Details of January
B4: Customer | C4: Qty (Nos.)
B5: Mr. Johnson | C5: 10000
B6: Mr. Smith | C6: 19000
B7: Ms. Lily | C7: 1500
B8: Mrs. Jackson | C8: 9000
B9: Mr. Howard | C9: 5000
B10: Mr. Musk | C10: 6600
B11: Mr. Gates | C11: 8000
B12: Mr. Lorry | C12: 20000
B13: Total Order | C13: =SUM(C5:C12) -> 79100

Sheet Feb
B2: Order Details of February
B4: Customer | C4: Qty (Nos.)
B5: Mr. Johnson | C5: 9000
B6: Mr. Smith | C6: 15000
B7: Ms. Lily | C7: 2000
B8: Mrs. Jackson | C8: 8500
B9: Mr. Howard | C9: 4500
B10: Mr. Musk | C10: 15000
B11: Mr. Gates | C11: 8000
B12: Mr. Lorry | C12: 21000
B13: Total Order | C13: =SUM(C5:C12) -> 83000

Sheet Mar
B2: Order Details of March
B4: Customer | C4: Qty (Nos.)
B5: Mr. Johnson | C5: 14000
B6: Mr. Smith | C6: 18000
B7: Ms. Lily | C7: 2000
B8: Mrs. Jackson | C8: 8000
B9: Mr. Howard | C9: 3000
B10: Mr. Musk | C10: 20000
B11: Mr. Gates | C11: 10000
B12: Mr. Lorry | C12: 20500
B13: Total Order | C13: =SUM(C5:C12) -> 95500

Sheet Apr
B2: Order Details of April
B4: Customer | C4: Qty (Nos.)
B5: Mr. Johnson | C5: 13200
B6: Mr. Smith | C6: 20000
B7: Ms. Lily | C7: 2500
B8: Mrs. Jackson | C8: 10000
B9: Mr. Howard | C9: 6000
B10: Mr. Musk | C10: 30000
B11: Mr. Gates | C11: 18000
B12: Mr. Lorry | C12: 22000
B13: Total Order | C13: =SUM(C5:C12) -> 121700

Sheet May
B2: Order Details of May
B4: Customer | C4: Qty (Nos.)
B5: Mr. Johnson | C5: 5000
B6: Mr. Smith | C6: 22000
B7: Ms. Lily | C7: 4000
B8: Mrs. Jackson | C8: 10000
B9: Mr. Howard | C9: 8000
B10: Mr. Musk | C10: 35000
B11: Mr. Gates | C11: 25000
B12: Mr. Lorry | C12: 23000
B13: Total Order | C13: =SUM(C5:C12) -> 132000

Sheet Jun
B2: Order Details of June
B4: Customer | C4: Qty (Nos.)
B5: Mr. Johnson | C5: 8000
B6: Mr. Smith | C6: 45000
B7: Ms. Lily | C7: 3500
B8: Mrs. Jackson | C8: 9500
B9: Mr. Howard | C9: 5000
B10: Mr. Musk | C10: 32000
B11: Mr. Gates | C11: 20000
B12: Mr. Lorry | C12: 23000
B13: Total Order | C13: =SUM(C5:C12) -> 146000

Sheet Consolidate
B2: Using Consolidate Feature
B4: Customer | C4: Qty | D4: Unit Price | E4: Total Price | H4: Practice Here!
B5: Mr. Johnson | C5: 59200 | D5: 10 | E5: =C5*D5 -> 592000
B6: Mr. Smith | C6: 139000 | D6: 12 | E6: =C6*D6 -> 1668000 | H6: Customer | I6: Qty
B7: Ms. Lily | C7: 15500 | D7: 45 | E7: 697500
B8: Mrs. Jackson | C8: 55000 | D8: 22 | E8: 1210000
B9: Mr. Howard | C9: 31500 | D9: 14 | E9: 441000
B10: Mr. Musk | C10: 138600 | D10: 20 | E10: 2772000
B11: Mr. Gates | C11: 89000 | D11: 22 | E11: 1958000
B12: Mr. Lorry | C12: 129500 | D12: 58 | E12: 7511000

Sheet Sum Using Cell Ref
B2: Using Cell Reference
B4: Customer | C4: Qty | D4: Unit Price | E4: Total Price | F4: Formula | J4: Practice Here!
B5: Mr. Johnson | C5: =Jan!C5+Feb!C5+Mar!C5+Apr!C5+May!C5+Jun!C5 -> 59200 | D5: 10 | E5: =C5*D5 -> 592000 | F5: =Jan!C5+Feb!C5+Mar!C5+ Apr!C5+May!C5+Jun!C5
B6: Mr. Smith | C6: =Jan!C6+Feb!C6+Mar!C6+Apr!C6+May!C6+Jun!C6 -> 139000 | D6: 12 | E6: =C6*D6 -> 1668000 | F6: =Jan!C6+Feb!C6+Mar!C6+Apr!C6+May!C6+Jun!C6 | J6: Customer | K6: Qty
B7: Ms. Lily | C7: =Jan!C7+Feb!C7+Mar!C7+Apr!C7+May!C7+Jun!C7 -> 15500 | D7: 45 | E7: 697500 | F7: =Jan!C7+Feb!C7+Mar!C7+Apr!C7+May!C7+Jun!C7 | J7: Mr. Johnson
B8: Mrs. Jackson | C8: =Jan!C8+Feb!C8+Mar!C8+Apr!C8+May!C8+Jun!C8 -> 55000 | D8: 22 | E8: 1210000 | F8: =Jan!C8+Feb!C8+Mar!C8+Apr!C8+May!C8+Jun!C8 | J8: Mr. Smith
B9: Mr. Howard | C9: =Jan!C9+Feb!C9+Mar!C9+Apr!C9+May!C9+Jun!C9 -> 31500 | D9: 14 | E9: 441000 | F9: =Jan!C9+Feb!C9+Mar!C9+Apr!C9+May!C9+Jun!C9 | J9: Ms. Lily
B10: Mr. Musk | C10: =Jan!C10+Feb!C10+Mar!C10+Apr!C10+May!C10+Jun!C10 -> 138600 | D10: 20 | E10: 2772000 | F10: =Jan!C10+Feb!C10+Mar!C10+Apr!C10+May!C10+Jun!C10 | J10: Mrs. Jackson
B11: Mr. Gates | C11: =Jan!C11+Feb!C11+Mar!C11+Apr!C11+May!C11+Jun!C11 -> 89000 | D11: 22 | E11: 1958000 | F11: =Jan!C11+Feb!C11+Mar!C11+Apr!C11+May!C11+Jun!C11 | J11: Mr. Howard
B12: Mr. Lorry | C12: =Jan!C12+Feb!C12+Mar!C12+Apr!C12+May!C12+Jun!C12 -> 129500 | D12: 58 | E12: 7511000 | F12: =Jan!C12+Feb!C12+Mar!C12+Apr!C12+May!C12+Jun!C12 | J12: Mr. Musk
J13: Mr. Gates
J14: Mr. Lorry

Sheet 3D Formula Sum
B2: Using a 3D Formula
B4: Customer | C4: Qty | D4: Unit Price | E4: Total Price | F4: Formula | K4: Practice Here!
B5: Mr. Johnson | C5: =SUM(Jan:Jun!C5) -> 59200 | D5: 10 | E5: =C5*D5 -> 592000 | F5: =_xlfn.FORMULATEXT(C5) -> =SUM(Jan:Jun!C5)
B6: Mr. Smith | C6: =SUM(Jan:Jun!C6) -> 139000 | D6: 12 | E6: =C6*D6 -> 1668000 | F6: =_xlfn.FORMULATEXT(C6) -> =SUM(Jan:Jun!C6) | K6: Customer | L6: Qty
B7: Ms. Lily | C7: =SUM(Jan:Jun!C7) -> 15500 | D7: 45 | E7: 697500 | F7: =SUM(Jan:Jun!C7) | K7: Mr. Johnson
B8: Mrs. Jackson | C8: =SUM(Jan:Jun!C8) -> 55000 | D8: 22 | E8: 1210000 | F8: =SUM(Jan:Jun!C8) | K8: Mr. Smith
B9: Mr. Howard | C9: =SUM(Jan:Jun!C9) -> 31500 | D9: 14 | E9: 441000 | F9: =SUM(Jan:Jun!C9) | K9: Ms. Lily
B10: Mr. Musk | C10: =SUM(Jan:Jun!C10) -> 138600 | D10: 20 | E10: 2772000 | F10: =SUM(Jan:Jun!C10) | K10: Mrs. Jackson
B11: Mr. Gates | C11: =SUM(Jan:Jun!C11) -> 89000 | D11: 22 | E11: 1958000 | F11: =SUM(Jan:Jun!C11) | K11: Mr. Howard
B12: Mr. Lorry | C12: =SUM(Jan:Jun!C12) -> 129500 | D12: 58 | E12: 7511000 | F12: =SUM(Jan:Jun!C12) | K12: Mr. Musk
K13: Mr. Gates
K14: Mr. Lorry

Sheet INDIRECT SUM
B2: T-Shirt Order Details
B4: Customer | C4: Qty | D4: Unit Price | E4: Total Price
B5: Mr. Johnson | C5: =SUM(INDIRECT($G$5:$G$10&"!"&CELL("address",C5))) -> 59200 | D5: 10 | E5: =C5*D5 -> 592000 | G5: Jan
B6: Mr. Smith | C6: =SUM(INDIRECT($G$5:$G$10&"!"&CELL("address",C6))) -> 139000 | D6: 12 | E6: =C6*D6 -> 1668000 | G6: Feb | K6: Practice Here!
B7: Ms. Lily | C7: =SUM(INDIRECT($G$5:$G$10&"!"&CELL("address",C7))) -> 15500 | D7: 45 | E7: 697500 | G7: Mar
B8: Mrs. Jackson | C8: =SUM(INDIRECT($G$5:$G$10&"!"&CELL("address",C8))) -> 55000 | D8: 22 | E8: 1210000 | G8: Apr | K8: Customer | L8: Qty
B9: Mr. Howard | C9: =SUM(INDIRECT($G$5:$G$10&"!"&CELL("address",C9))) -> 31500 | D9: 14 | E9: 441000 | G9: May | K9: Mr. Johnson
B10: Mr. Musk | C10: =SUM(INDIRECT($G$5:$G$10&"!"&CELL("address",C10))) -> 138600 | D10: 20 | E10: 2772000 | G10: Jun | K10: Mr. Smith
B11: Mr. Gates | C11: =SUM(INDIRECT($G$5:$G$10&"!"&CELL("address",C11))) -> 89000 | D11: 22 | E11: 1958000 | K11: Ms. Lily
B12: Mr. Lorry | C12: =SUM(INDIRECT($G$5:$G$10&"!"&CELL("address",C12))) -> 129500 | D12: 58 | E12: 7511000 | K12: Mrs. Jackson
K13: Mr. Howard
K14: Mr. Musk
K15: Mr. Gates
K16: Mr. Lorry

Sheet Pull Same Cell (INDIRECT)
B2: Using INDIRECT and CELL Functions
S3: Practice Here!
B4: Customer | C4: January | D4: February | E4: March | F4: April | G4: May | H4: June | I4: Total Order
B5: Mr. Johnson | C5: =INDIRECT(K$5&"!"&CELL("address",$C5)) -> 10000 | D5: =INDIRECT(L$5&"!"&CELL("address",$C5)) -> 9000 | E5: =INDIRECT(M$5&"!"&CELL("address",$C5)) -> 14000 | F5: =INDIRECT(N$5&"!"&CELL("address",$C5)) -> 13200 | G5: =INDIRECT(O$5&"!"&CELL("address",$C5)) -> 5000 | H5: =INDIRECT(P$5&"!"&CELL("address",$C5)) -> 8000 | I5: =SUM(C5:H5) -> 59200 | K5: Jan | L5: Feb | M5: Mar | N5: Apr | O5: May | P5: Jun | S5: Customer | T5: January | U5: February | V5: March | W5: April | X5: May | Y5: June
B6: Mr. Smith | C6: =INDIRECT(K$5&"!"&CELL("address",$C6)) -> 19000 | D6: =INDIRECT(L$5&"!"&CELL("address",$C6)) -> 15000 | E6: =INDIRECT(M$5&"!"&CELL("address",$C6)) -> 18000 | F6: =INDIRECT(N$5&"!"&CELL("address",$C6)) -> 20000 | G6: =INDIRECT(O$5&"!"&CELL("address",$C6)) -> 22000 | H6: =INDIRECT(P$5&"!"&CELL("address",$C6)) -> 45000 | I6: =SUM(C6:H6) -> 139000 | S6: Mr. Johnson
B7: Ms. Lily | C7: =INDIRECT(K$5&"!"&CELL("address",$C7)) -> 1500 | D7: =INDIRECT(L$5&"!"&CELL("address",$C7)) -> 2000 | E7: =INDIRECT(M$5&"!"&CELL("address",$C7)) -> 2000 | F7: =INDIRECT(N$5&"!"&CELL("address",$C7)) -> 2500 | G7: =INDIRECT(O$5&"!"&CELL("address",$C7)) -> 4000 | H7: =INDIRECT(P$5&"!"&CELL("address",$C7)) -> 3500 | I7: 15500 | S7: Mr. Smith
B8: Mrs. Jackson | C8: =INDIRECT(K$5&"!"&CELL("address",$C8)) -> 9000 | D8: =INDIRECT(L$5&"!"&CELL("address",$C8)) -> 8500 | E8: =INDIRECT(M$5&"!"&CELL("address",$C8)) -> 8000 | F8: =INDIRECT(N$5&"!"&CELL("address",$C8)) -> 10000 | G8: =INDIRECT(O$5&"!"&CELL("address",$C8)) -> 10000 | H8: =INDIRECT(P$5&"!"&CELL("address",$C8)) -> 9500 | I8: 55000 | S8: Ms. Lily
B9: Mr. Howard | C9: =INDIRECT(K$5&"!"&CELL("address",$C9)) -> 5000 | D9: =INDIRECT(L$5&"!"&CELL("address",$C9)) -> 4500 | E9: =INDIRECT(M$5&"!"&CELL("address",$C9)) -> 3000 | F9: =INDIRECT(N$5&"!"&CELL("address",$C9)) -> 6000 | G9: =INDIRECT(O$5&"!"&CELL("address",$C9)) -> 8000 | H9: =INDIRECT(P$5&"!"&CELL("address",$C9)) -> 5000 | I9: 31500 | S9: Mrs. Jackson
B10: Mr. Musk | C10: =INDIRECT(K$5&"!"&CELL("address",$C10)) -> 6600 | D10: =INDIRECT(L$5&"!"&CELL("address",$C10)) -> 15000 | E10: =INDIRECT(M$5&"!"&CELL("address",$C10)) -> 20000 | F10: =INDIRECT(N$5&"!"&CELL("address",$C10)) -> 30000 | G10: =INDIRECT(O$5&"!"&CELL("address",$C10)) -> 35000 | H10: =INDIRECT(P$5&"!"&CELL("address",$C10)) -> 32000 | I10: 138600 | S10: Mr. Howard
B11: Mr. Gates | C11: =INDIRECT(K$5&"!"&CELL("address",$C11)) -> 8000 | D11: =INDIRECT(L$5&"!"&CELL("address",$C11)) -> 8000 | E11: =INDIRECT(M$5&"!"&CELL("address",$C11)) -> 10000 | F11: =INDIRECT(N$5&"!"&CELL("address",$C11)) -> 18000 | G11: =INDIRECT(O$5&"!"&CELL("address",$C11)) -> 25000 | H11: =INDIRECT(P$5&"!"&CELL("address",$C11)) -> 20000 | I11: 89000 | S11: Mr. Musk
B12: Mr. Lorry | C12: =INDIRECT(K$5&"!"&CELL("address",$C12)) -> 20000 | D12: =INDIRECT(L$5&"!"&CELL("address",$C12)) -> 21000 | E12: =INDIRECT(M$5&"!"&CELL("address",$C12)) -> 20500 | F12: =INDIRECT(N$5&"!"&CELL("address",$C12)) -> 22000 | G12: =INDIRECT(O$5&"!"&CELL("address",$C12)) -> 23000 | H12: =INDIRECT(P$5&"!"&CELL("address",$C12)) -> 23000 | I12: 129500 | S12: Mr. Gates
S13: Mr. Lorry
